bitfinex/quotes_ETHUSD_20251215
["timestamp","ask_amount","ask_price","bid_price","bid_amount"]
[1765823016430,3.95528209,2934.9,2934.5,0.969]
[1765823016611,3.95528209,2934.9,2934.0,0.4806]
[1765823016612,0.39562821,2934.8,2934.0,0.4806]
[1765823016783,6.81556418,2934.9,2934.0,0.4806]
[1765823016984,0.547,2934.7,2934.1,3.40813421]
[1765823017205,0.001,2934.3,2934.1,3.40813421]
[1765823017405,0.001,2934.3,2934.1,3.88873421]
[1765823017618,0.001,2934.3,2934.2,0.969]
[1765823018578,0.001,2934.3,2934.2,4.37708397]
[1765823027722,0.001,2934.3,2934.2,5.50455926]
[1765823027909,0.001,2934.9,2934.3,0.58047529]
[1765823028113,0.001,2934.9,2934.8,0.4884]
[1765823028306,0.001,2934.9,2934.8,0.969]
[1765823029119,0.001,2934.9,2934.8,1.54947529]
[1765823029320,0.547,2935.8,2934.8,1.54947529]
[1765823029321,0.17797616,2936.5,2935.4,0.6862]
[1765823029621,0.001,2936.7,2936.0,0.4884]
[1765823029828,0.001,2936.7,2936.0,0.969]
[1765823030123,0.001,2936.7,2936.0,4.95546984]
[1765823030588,0.001,2936.7,2936.0,3.89439455]
[1765823030904,0.001,2936.7,2936.0,3.40599455]
[1765823031114,0.001,2936.7,2935.8,3.40613598]
[1765823031291,0.001,2936.7,2936.0,3.89439455]
[1765823031798,0.001,2936.7,2936.0,4.37499455]
[1765823031999,0.001,2936.7,2936.0,0.4884]
[1765823032203,0.001,2936.7,2936.0,4.37499455]
[1765823032397,0.001,2936.7,2936.0,5.1531046]
[1765823033427,0.001,2936.7,2936.0,4.37499455]
[1765823034894,0.001,2936.7,2936.0,0.969]
[1765823035099,0.001,2936.7,2936.0,0.4884]
[1765823035425,0.001,2936.7,2935.7,3.40632087]
[1765823035426,0.1179,2936.1,2935.7,3.40632087]
[1765823035596,0.1179,2936.1,2935.6,3.40640813]
[1765823036208,0.1179,2936.1,2935.4,4.08506206]
[1765823036209,0.1179,2936.1,2935.5,6.81314936]
[1765823036407,0.5250624,2936.1,2935.5,6.81314936]
[1765823036610,0.5250624,2936.1,2935.5,3.40657468]
[1765823036808,3.93099567,2936.1,2935.5,3.40657468]
[1765823037012,3.93099567,2936.1,2934.7,3.40742761]
[1765823037013,0.1169,2935.6,2934.7,3.40742761]
[1765823037224,0.1169,2935.6,2934.6,0.1978]
[1765823037225,0.547,2935.6,2935.1,3.40703584]
[1765823037427,0.547,2935.6,2935.0,3.40710506]
[1765823037707,0.547,2935.6,2934.9,3.40721279]
[1765823038014,0.547,2935.6,2935.0,3.88769678]
[1765823038226,3.95346885,2935.6,2935.1,3.40703666]
[1765823038423,5.26990647,2935.6,2935.0,3.88769781]
[1765823038617,8.67636572,2935.6,2935.0,0.4806]
[1765823038827,5.26990647,2935.6,2935.4,0.002]
[1765823039034,0.639304,2935.5,2935.4,0.002]
[1765823040314,0.639304,2935.5,2934.2,0.002]
[1765823040315,0.405504,2935.4,2934.2,0.002]
[1765823040678,0.405504,2935.0,2934.2,0.4826]
[1765823040952,0.1169,2934.3,2934.2,0.002]
[1765823041103,0.6639,2934.3,2934.2,0.002]
[1765823041303,1.186304,2934.3,2934.2,0.002]
[1765823041539,2.59179806,2934.3,2934.2,0.002]
[1765823041742,2.01132277,2934.3,2934.2,0.002]
[1765823042035,1.069404,2934.3,2934.2,0.002]
[1765823042416,5.05784711,2934.3,2934.2,0.002]
[1765823042735,5.17474711,2934.3,2934.2,0.002]
[1765823042943,5.05784711,2934.3,2934.2,0.002]
[1765823043918,5.17474711,2934.3,2934.2,0.002]
[1765823044219,6.03300721,2934.3,2934.2,0.002]
[1765823046051,5.48600721,2934.3,2934.2,0.002]
[1765823046251,6.03300721,2934.3,2934.2,0.002]
[1765823046427,5.48600721,2934.3,2934.2,0.002]
[1765823046621,6.03300721,2934.3,2934.2,0.002]
[1765823047434,6.08300721,2934.3,2934.2,0.002]
[1765823047630,6.03300721,2934.3,2934.2,0.002]
[1765823048267,0.1169,2934.3,2934.2,0.002]
[1765823048437,0.547,2934.3,2934.2,0.486]
[1765823048622,6.81454222,2934.9,2934.2,0.9587]
[1765823048821,0.547,2934.8,2934.2,0.486]
[1765823049242,1.28315422,2934.8,2934.2,0.002]
[1765823049447,8.19362951,2934.8,2934.2,0.002]
[1765823049857,0.405504,2934.7,2934.2,0.002]
[1765823050167,0.1169,2934.3,2934.2,0.002]
[1765823050462,4.07186782,2934.3,2934.2,0.002]
[1765823050764,5.92271935,2934.3,2934.2,0.002]
[1765823056645,5.80581935,2934.3,2934.2,0.002]
[1765823057060,5.40031535,2934.3,2934.2,0.002]
[1765823057257,4.65234311,2934.3,2934.2,0.002]
[1765823057876,4.07186782,2934.3,2934.2,0.002]
[1765823058361,4.65234311,2934.3,2934.2,0.002]
[1765823058736,4.76924311,2934.3,2934.2,0.002]
[1765823058959,5.17474711,2934.3,2934.2,0.002]
[1765823059266,6.03300705,2934.3,2934.2,0.002]
[1765823059637,5.48600705,2934.3,2934.2,0.002]
[1765823059833,4.62774711,2934.3,2934.2,0.002]
[1765823060046,5.17474711,2934.3,2934.2,0.002]
[1765823060465,4.10534311,2934.3,2934.2,0.002]
[1765823060673,4.65234311,2934.3,2934.2,0.002]
[1765823061256,5.05784711,2934.3,2934.2,0.002]
[1765823061472,5.90441803,2934.3,2934.2,0.002]
[1765823061772,5.49891403,2934.3,2934.2,0.002]
[1765823061936,4.65234311,2934.3,2934.2,0.002]
[1765823062141,4.10534311,2934.3,2934.2,0.002]
[1765823062342,4.65234311,2934.3,2934.2,0.002]
[1765823063207,5.05784711,2934.3,2934.2,0.002]
[1765823063471,5.17474711,2934.3,2934.2,0.002]
[1765823063682,6.03300803,2934.3,2934.2,0.002]
[1765823063853,6.21111851,2934.3,2934.2,0.002]
[1765823065670,4.28345359,2934.3,2934.2,0.002]
[1765823065972,4.83045359,2934.3,2934.2,0.002]
[1765823066767,0.75858577,2934.3,2934.2,0.002]
[1765823066970,0.547,2934.3,2934.2,0.9587]
[1765823067482,0.547,2934.6,2934.2,0.9587]
[1765823067684,0.547,2934.6,2934.2,1.415586]
[1765823067862,0.547,2934.6,2934.3,0.4727]
[1765823068068,0.547,2934.6,2934.5,0.484]
[1765823068245,0.17807556,2934.9,2934.5,0.484]
[1765823068461,6.33,2935.0,2934.8,0.484]
[1765823068675,0.547,2935.0,2934.9,0.484]
[1765823068849,0.001,2935.4,2934.9,0.9567]
[1765823069052,0.547,2935.3,2935.0,0.4727]
[1765823069353,0.547,2935.3,2934.9,0.9567]
[1765823069567,0.547,2935.3,2934.5,0.4727]
[1765823069764,0.547,2935.3,2934.6,0.38805343]
[1765823070182,0.547,2935.3,2934.7,3.87712844]
[1765823070472,0.547,2935.3,2935.2,0.1957]
[1765823071190,0.547,2935.3,2934.8,0.4697]
[1765823071361,3.95380679,2935.3,2934.8,0.4697]
[1765823071685,3.95380679,2935.3,2934.6,3.60328498]
[1765823071686,7.36061358,2935.3,2934.6,3.60328498]
[1765823071976,3.40680679,2935.3,2934.2,0.002]
[1765823072166,0.547,2935.2,2934.4,0.4988]
[1765823072369,0.547,2935.2,2934.7,3.40745868]
[1765823072572,0.547,2935.2,2934.5,3.40769538]
[1765823072766,0.547,2935.2,2934.7,3.40741363]
[1765823072980,0.547,2935.2,2934.8,0.68150329]
[1765823073174,0.547,2935.1,2934.8,4.08884896]
[1765823073482,0.547,2935.1,2934.8,0.68150329]
[1765823073683,3.95411408,2935.1,2934.5,3.40766454]
[1765823073980,3.95411408,2935.1,2934.4,3.90661604]
[1765823073981,7.36122816,2935.1,2934.4,3.90661604]
[1765823074181,3.95411408,2935.1,2934.5,3.40772077]
[1765823074386,7.36122816,2935.1,2934.4,3.90658225]
[1765823074764,7.36122816,2935.1,2934.4,0.4988]
[1765823074969,7.36122816,2935.1,2934.5,0.39067249]
[1765823075160,0.001,2935.4,2934.4,3.40784069]
[1765823075365,0.546,2935.3,2934.4,3.40784069]
[1765823075565,0.546,2935.3,2934.3,3.90670728]
[1765823076672,0.546,2935.3,2934.3,6.8158751]
[1765823076870,0.546,2935.3,2934.4,0.4988]
[1765823077073,0.546,2935.3,2934.5,0.39067073]
[1765823077471,0.001,2935.4,2935.2,0.6724]
[1765823077683,0.001,2935.4,2935.3,0.973]
[1765823079475,0.001,2935.4,2935.3,4.37980679]
[1765823079676,0.001,2935.4,2935.3,5.17829898]
[1765823080059,0.001,2935.4,2935.3,0.79849219]
[1765823080263,0.6639,2935.4,2934.7,0.1982]
[1765823080589,0.6639,2935.4,2934.5,0.88947073]
[1765823080590,0.1169,2935.3,2934.5,0.88947073]
[1765823080798,0.1169,2935.3,2934.6,3.40754991]
[1765823081087,1.12747529,2935.4,2934.7,3.40749149]
[1765823081288,0.1169,2934.8,2934.2,0.002]
[1765823081588,0.546,2934.8,2934.2,3.41000833]
[1765823081894,0.546,2934.8,2934.2,0.002]
[1765823081895,3.95339769,2934.8,2934.2,0.002]
[1765823082094,0.546,2934.8,2934.2,0.75391634]
[1765823082388,3.95339253,2934.8,2934.2,1.25271634]
[1765823082581,3.95340283,2934.8,2934.2,1.25271634]
[1765823083581,7.47770566,2934.8,2934.2,0.002]
[1765823083893,4.07030283,2934.8,2934.2,0.002]
[1765823084082,7.47770566,2934.8,2934.2,0.002]
[1765823084472,4.07030283,2934.8,2934.2,0.002]
[1765823084875,0.1169,2934.3,2934.2,0.002]
[1765823085100,0.6629,2934.3,2934.2,0.002]
[1765823085273,1.185304,2934.3,2934.2,0.002]
[1765823085478,0.58047529,2934.7,2934.2,0.002]
[1765823085673,4.65134311,2934.3,2934.2,0.002]
[1765823086905,0.1169,2934.3,2934.2,0.002]
[1765823087064,3.98826072,2934.5,2934.2,0.002]
[1765823087266,0.546,2934.4,2934.2,0.002]
[1765823087705,3.95394583,2934.4,2934.2,0.002]
[1765823087868,0.1169,2934.3,2934.2,0.002]
[1765823088169,7.36189166,2934.4,2934.2,0.002]
[1765823088370,0.1169,2934.3,2934.2,0.002]
[1765823088973,0.546,2934.3,2934.2,0.002]
[1765823089375,0.58047529,2934.6,2934.2,0.002]
[1765823089573,0.546,2934.5,2934.2,0.002]
[1765823089775,3.40785169,2934.4,2934.2,0.002]
[1765823090502,0.1169,2934.3,2934.2,0.002]
[1765823090716,0.81427529,2934.3,2934.2,0.002]
[1765823090927,1.21977929,2934.3,2934.2,0.002]
[1765823091106,0.405504,2934.2,2934.1,0.002]
[1765823091406,0.639304,2934.2,2934.1,0.002]
[1765823091703,4.62786326,2934.2,2934.1,0.002]
[1765823092072,5.17386326,2934.2,2934.1,0.002]
[1765823092701,4.62786326,2934.2,2934.1,0.002]
[1765823092886,6.06326199,2934.2,2934.1,0.002]
[1765823093292,6.06326199,2934.2,2934.0,0.002]
[1765823093293,0.98597929,2934.1,2934.0,0.002]
[1765823093609,1.21977929,2934.1,2933.0,0.002]
[1765823093776,3.64258101,2933.6,2933.0,0.002]
[1765823093976,4.18858101,2933.6,2933.0,0.002]
[1765823094205,0.7798,2933.6,2933.0,0.002]
[1765823094473,4.18858101,2933.6,2933.0,0.002]
[1765823095493,4.30548101,2933.6,2933.0,0.002]
[1765823096110,4.18858101,2933.6,2933.0,0.002]
[1765823096411,0.546,2933.8,2933.2,0.4988]
[1765823096817,0.94143163,2933.8,2933.0,0.002]
[1765823097023,0.1169,2933.6,2933.0,0.002]
[1765823098116,3.52568101,2933.6,2933.0,3.41147834]
[1765823098481,3.52568101,2933.6,2933.0,0.002]
[1765823099113,3.64258101,2933.6,2933.0,0.002]
[1765823099988,3.52568101,2933.6,2933.0,0.002]
[1765823100321,4.31325932,2933.6,2933.0,0.002]
[1765823101593,4.19635932,2933.6,2933.0,0.002]
[1765823101918,4.19635932,2933.6,2933.0,0.5008]
[1765823102701,4.19635932,2933.6,2933.0,3.91023803]
[1765823102906,4.74235932,2933.6,2933.0,0.5008]
[1765823103106,3.40878101,2933.6,2933.0,3.91024139]
[1765823103310,3.95478101,2933.6,2933.0,3.91024139]
[1765823103492,3.95478101,2933.6,2933.0,0.5008]
[1765823103695,4.07168101,2933.6,2933.0,0.5008]
[1765823103919,4.07168101,2933.6,2933.0,0.002]
[1765823104212,4.07168101,2933.6,2933.0,3.90256725]
[1765823104708,4.07168101,2933.6,2933.0,0.4931]
[1765823105232,3.95478101,2933.6,2933.1,0.4911]
[1765823105737,4.07168101,2933.6,2933.0,0.002]
[1765823105887,4.98784972,2933.6,2933.0,0.002]
[1765823106417,5.56832501,2933.6,2933.0,0.002]
[1765823106623,5.45142501,2933.6,2933.0,0.4931]
[1765823107732,5.97382901,2933.6,2933.0,0.002]
[1765823107897,4.90542501,2933.6,2933.1,0.1995]
[1765823108254,4.6521563,2933.6,2933.1,0.1995]
[1765823108589,0.546,2933.6,2933.2,0.4911]
[1765823108788,3.40785169,2934.4,2933.5,0.9641]
[1765823109288,0.1179,2934.5,2933.6,0.4911]
[1765823109489,0.001,2934.5,2934.4,0.6705]
[1765823109805,0.001,2934.5,2934.4,1.1616]
[1765823109987,0.001,2934.5,2934.4,0.6705]
[1765823110405,0.001,2934.5,2934.1,0.6906]
[1765823110626,3.40876015,2934.5,2933.9,0.1995]
[1765823110832,3.40876015,2934.5,2933.5,0.002]
[1765823110833,0.1169,2934.2,2933.5,0.002]
[1765823111003,0.546,2934.1,2933.5,0.4931]
[1765823111398,0.546,2934.1,2933.7,3.4086032]
[1765823111918,0.546,2934.1,2933.8,3.8996292]
[1765823112133,0.546,2934.1,2933.8,0.4911]
[1765823112336,3.40876015,2934.5,2934.0,0.471]
[1765823112535,0.546,2934.4,2934.0,0.9621]
[1765823112831,3.95386171,2934.4,2934.1,0.1995]
[1765823113031,3.95386171,2934.4,2934.0,0.9621]
[1765823113032,3.40786171,2934.4,2934.0,0.471]
[1765823113242,0.546,2934.3,2934.0,0.471]
[1765823113537,0.546,2934.3,2934.0,0.9621]
[1765823113833,0.001,2934.1,2934.0,0.9621]
[1765823114036,0.001,2934.1,2934.0,4.82742288]
[1765823114736,0.001,2934.1,2934.0,1.41910659]
[1765823114939,0.001,2934.1,2934.0,0.9621]
[1765823115110,0.001,2934.1,2934.0,4.37041629]
[1765823115506,0.001,2934.1,2934.0,0.9621]
[1765823115711,0.001,2934.1,2933.7,3.4086067]
[1765823116320,0.001,2934.1,2933.8,3.40851555]
[1765823116526,0.001,2934.1,2933.8,3.89961555]
[1765823117043,0.001,2934.1,2934.0,0.471]
[1765823117239,0.001,2934.1,2934.0,0.50508316]
[1765823117546,0.001,2934.1,2934.0,0.9621]
[1765823117954,0.001,2934.5,2934.0,0.9621]
[1765823118125,0.001,2934.5,2934.4,0.6705]
[1765823118449,0.001,2934.5,2934.1,0.1995]
[1765823118647,0.001,2934.5,2934.1,0.6906]
[1765823119040,0.001,2934.5,2934.2,0.4911]
[1765823119847,0.001,2934.5,2933.6,3.40872977]
[1765823119848,0.001,2934.5,2933.8,3.60797184]
[1765823120155,0.546,2934.4,2933.9,3.40839123]
[1765823120362,0.546,2934.4,2933.5,3.90198002]
[1765823120663,0.546,2934.4,2933.6,3.40873927]
[1765823120955,0.546,2934.4,2933.5,0.4931]
[1765823120956,6.81593564,2934.3,2933.5,0.002]
[1765823121142,0.1179,2934.2,2933.5,0.002]
[1765823121347,1.20668035,2934.2,2933.5,0.002]
[1765823121759,1.78715564,2934.2,2933.5,0.002]
[1765823123060,0.546,2934.1,2933.5,0.002]
[1765823123367,6.81663258,2934.0,2933.5,0.002]
[1765823123661,3.40831629,2934.0,2933.5,0.002]
[1765823123852,0.546,2933.9,2933.5,0.4931]
[1765823124842,7.36292911,2933.9,2933.5,0.002]
[1765823125048,8.09922202,2933.9,2933.5,0.002]
[1765823125283,4.69072537,2933.9,2933.5,0.002]
[1765823125574,8.09922202,2933.9,2933.5,0.002]
[1765823126032,0.1179,2933.6,2933.5,0.002]
[1765823126429,0.641304,2933.6,2933.5,0.002]
[1765823126733,0.523404,2933.6,2933.5,0.002]
[1765823127056,3.93218501,2933.6,2933.5,0.002]
[1765823127261,4.72431848,2933.6,2933.5,0.002]
[1765823127625,0.91003347,2933.6,2933.5,0.002]
[1765823127831,0.546,2933.6,2933.5,0.002]
[1765823128962,4.07268101,2933.6,2933.5,0.002]
[1765823129826,3.95478101,2933.6,2933.5,0.002]
[1765823130238,0.546,2933.6,2933.5,0.002]
[1765823130558,3.40871433,2933.7,2933.5,0.002]
[1765823130787,0.6639,2933.6,2933.5,0.002]
[1765823130961,0.546,2933.6,2933.5,0.002]
[1765823131561,3.52583863,2934.4,2933.5,0.9232]
[1765823131746,11.12901449,2934.3,2933.6,0.4501]
[1765823131950,0.58047529,2934.2,2933.5,0.002]
[1765823132130,0.69837529,2934.2,2933.5,0.002]
[1765823132326,0.1179,2934.1,2933.5,0.002]
[1765823132763,0.1179,2933.6,2933.5,0.002]
[1765823132936,0.546,2933.6,2933.5,0.002]
[1765823133142,0.546,2933.6,2933.5,0.4885]
[1765823133471,0.546,2933.6,2933.5,0.002]
[1765823133632,3.95478101,2933.6,2933.5,0.002]
[1765823133833,4.80902577,2933.6,2933.5,0.002]
[1765823134033,4.92692577,2933.6,2933.5,0.002]
[1765823134228,4.80902577,2933.6,2933.5,0.002]
[1765823134956,8.21780678,2933.6,2933.2,0.4787]
[1765823135662,0.2089,2933.3,2933.0,0.002]
[1765823135862,0.82178068,2933.5,2933.0,0.002]
[1765823136034,7.36356202,2933.6,2933.0,0.4807]
[1765823136230,7.36356202,2933.6,2933.1,0.1968]
[1765823136463,0.58047529,2933.5,2933.0,0.002]
[1765823136965,0.58047529,2933.5,2933.1,0.1968]
[1765823137273,7.36356202,2933.6,2933.1,0.1968]
[1765823137429,3.95478101,2933.6,2933.2,0.4787]
[1765823137634,0.2089,2934.2,2933.5,0.4865]
[1765823137935,3.4073411,2934.9,2933.5,0.4865]
[1765823137936,3.40820012,2934.1,2933.5,0.4865]
[1765823138239,7.36240024,2934.1,2933.5,0.9652]
[1765823138444,7.36240024,2934.1,2933.5,0.4865]
[1765823139632,7.57130024,2934.1,2933.2,3.88787674]
[1765823139834,7.36240024,2934.1,2933.3,0.40846767]
[1765823140044,0.2089,2933.4,2933.1,0.1968]
[1765823140255,0.78937529,2934.0,2933.1,0.1968]
[1765823140256,0.546,2933.6,2933.1,0.1968]
[1765823140464,0.546,2933.6,2933.1,4.08479039]
[1765823140655,0.546,2933.6,2933.1,0.6755]
[1765823140861,0.546,2933.6,2933.2,0.4787]
[1765823141870,0.58047529,2933.5,2933.2,0.4787]
[1765823143938,3.98948325,2933.5,2933.2,0.4787]
[1765823144662,7.39849121,2933.5,2933.1,0.1968]
[1765823144880,7.39849121,2933.5,2933.1,0.6755]
[1765823145075,0.2089,2933.2,2933.0,0.002]
[1765823145278,8.19294033,2933.5,2933.0,0.002]
[1765823145559,7.39849121,2933.5,2933.0,0.002]
[1765823145968,7.39849121,2933.5,2933.1,0.6755]
[1765823147974,7.39849121,2933.5,2933.1,0.1968]
[1765823148160,7.39849121,2933.5,2933.1,0.6755]
[1765823148357,8.53380883,2933.5,2933.1,0.6755]
[1765823148534,8.53380883,2933.5,2933.0,0.002]
[1765823148737,8.53380883,2933.5,2933.0,0.4807]
[1765823149364,7.39849121,2933.5,2933.1,0.1968]
[1765823149866,7.39849121,2933.5,2933.1,0.6755]
[1765823150367,7.39849121,2933.5,2933.0,0.002]
[1765823150542,7.39849121,2933.5,2933.1,0.6755]
[1765823150543,3.98948325,2933.5,2933.1,0.6755]
[1765823150748,3.98948325,2933.5,2933.0,0.002]
[1765823150952,0.2089,2933.1,2933.0,0.002]
[1765823151364,7.39849121,2933.5,2933.0,0.002]
[1765823151539,7.60739121,2933.5,2933.0,0.002]
[1765823152471,7.39849121,2933.5,2933.0,0.002]
[1765823153438,3.98948325,2933.5,2933.0,0.4807]
[1765823153638,7.39849121,2933.5,2933.0,0.4807]
[1765823155374,7.60739121,2933.5,2933.0,0.002]
[1765823157585,0.2089,2933.1,2933.0,0.002]
[1765823158089,0.2089,2933.4,2933.0,0.002]
[1765823158293,7.39849121,2933.5,2933.0,0.002]
[1765823158492,3.98948325,2933.5,2933.0,0.4807]
[1765823158793,0.546,2933.4,2933.1,0.1968]
[1765823159380,3.40912964,2933.3,2933.0,0.8701382]
[1765823159579,0.546,2933.4,2933.0,0.8701382]
[1765823159757,3.95507439,2933.4,2933.0,0.8701382]
[1765823160253,0.58047529,2933.5,2933.1,3.40935563]
[1765823160456,0.001,2933.6,2933.1,3.40935563]
[1765823160457,0.001,2933.6,2933.2,0.4787]
[1765823160652,0.001,2933.6,2933.5,0.4865]
[1765823160956,0.58047529,2933.5,2933.1,0.38027938]
[1765823161151,0.2089,2933.2,2933.0,0.002]
[1765823161356,3.40904173,2933.4,2933.0,0.002]
[1765823161584,0.2089,2933.1,2933.0,0.002]
[1765823162280,0.2089,2933.3,2933.0,0.002]
[1765823162483,6.81808346,2933.4,2933.0,0.002]
[1765823162684,3.40904173,2933.4,2933.0,0.002]
[1765823162875,6.81808346,2933.4,2933.0,0.002]
[1765823163486,3.40904173,2933.4,2933.0,0.002]
[1765823163670,3.40904173,2933.4,2933.0,0.4671]
[1765823164489,0.546,2933.3,2933.0,0.4671]
[1765823165986,3.95514885,2933.3,2933.0,0.4671]
[1765823166181,0.2089,2933.1,2933.0,0.002]
[1765823166982,7.3642977,2933.3,2933.0,0.002]
[1765823166983,3.95514885,2933.3,2933.0,0.002]
[1765823167187,3.95514885,2933.3,2933.0,0.4881]
[1765823168568,0.001,2933.5,2933.2,0.6793]
[1765823168790,0.001,2933.5,2933.4,0.4861]
[1765823169298,0.001,2933.5,2933.4,0.9512]
[1765823169669,0.001,2933.5,2933.4,4.36021343]
[1765823169870,0.2099,2933.5,2933.0,0.002]
[1765823170169,0.2099,2933.5,2933.0,3.41141894]
[1765823170170,0.1309,2933.4,2933.0,3.41141894]
[1765823170782,0.1309,2933.4,2933.0,0.002]
[1765823171479,0.1309,2933.4,2933.0,3.41146498]
[1765823171702,0.1309,2933.4,2933.0,4.14857958]
[1765823172071,3.53994323,2933.4,2933.0,0.7391146]
[1765823172267,3.53992253,2933.4,2933.0,0.002]
[1765823173982,3.74882253,2933.4,2933.0,0.002]
[1765823174372,3.40902253,2933.4,2933.0,0.002]
[1765823174574,0.001,2933.5,2933.0,0.4671]
[1765823174871,0.001,2933.5,2933.4,0.4861]
[1765823175373,0.001,2933.5,2933.4,0.9512]
[1765823175709,0.001,2933.5,2933.1,0.6583]
[1765823175922,0.001,2933.5,2933.1,0.1932]
[1765823176084,0.001,2933.5,2933.1,0.6583]
[1765823176487,0.001,2933.5,2933.0,0.002]
[1765823176684,0.2099,2933.5,2933.0,0.002]
[1765823176917,0.001,2933.5,2933.0,0.002]
[1765823177087,0.001,2933.5,2933.0,0.4671]
[1765823177420,0.001,2933.5,2933.0,3.8765616]
[1765823177922,0.001,2933.5,2933.1,3.60250689]
[1765823178080,0.001,2933.5,2933.0,0.73102345]
[1765823178280,0.001,2933.5,2933.0,0.002]
[1765823178528,0.001,2933.5,2933.0,0.4671]
[1765823178683,0.001,2933.5,2933.0,3.87656208]
[1765823178886,0.001,2933.5,2933.0,0.4671]
[1765823179086,0.001,2933.5,2933.0,0.002]
[1765823180213,3.40989722,2933.5,2933.0,0.002]
[1765823180517,0.547,2933.5,2933.1,0.6583]
[1765823180891,0.547,2933.5,2933.1,0.1932]
[1765823181214,0.547,2933.5,2933.0,0.002]
[1765823181406,0.547,2933.5,2933.1,0.1932]
[1765823182220,0.001,2933.5,2933.4,0.4861]
[1765823182586,0.001,2933.5,2933.4,0.9512]
[1765823183411,0.001,2933.5,2933.4,1.56576542]
[1765823183612,0.001,2933.5,2933.4,1.97126942]
[1765823183916,0.001,2933.5,2933.4,2.9309058]
[1765823184299,0.001,2933.5,2933.4,6.33991923]
[1765823184513,0.001,2933.5,2933.4,6.3058291]
[1765823185238,0.001,2934.1,2933.5,1.356704]
[1765823185389,0.001,2934.1,2934.0,0.4861]
[1765823185589,0.001,2934.1,2934.0,0.9512]
[1765823186014,0.001,2934.1,2934.0,1.4972]
[1765823186211,0.001,2934.5,2934.4,0.58047529]
[1765823186408,0.001,2934.5,2934.4,5.02042698]
[1765823186601,0.001,2934.5,2934.4,5.48552698]
[1765823186810,0.001,2934.5,2934.4,4.35905169]
[1765823187012,0.2109,2934.5,2933.8,0.1932]
[1765823187323,0.001,2934.5,2934.4,0.4861]
[1765823188011,0.001,2934.5,2933.8,0.7392]
[1765823188012,0.05,2934.3,2933.0,0.002]
[1765823188212,0.405504,2934.2,2933.0,0.002]
[1765823188400,0.405504,2933.9,2933.0,0.002]
[1765823188599,0.092,2933.8,2933.0,0.002]
[1765823188921,0.3019,2933.8,2933.0,0.002]
[1765823189516,0.546,2933.7,2933.0,0.002]
[1765823191009,3.40878101,2933.6,2933.0,0.002]
[1765823191589,3.95468993,2933.7,2933.0,0.002]
[1765823191590,0.3019,2933.8,2933.0,0.002]
[1765823191823,0.546,2933.7,2933.1,0.1905]
[1765823192027,3.50059216,2933.8,2933.1,0.1905]
[1765823192392,0.546,2933.7,2933.1,0.6565]
[1765823192628,0.7569,2933.7,2933.0,0.002]
[1765823193192,3.40878101,2933.6,2933.0,0.002]
[1765823193825,6.81756202,2933.6,2933.0,0.002]
[1765823194030,3.40878101,2933.6,2933.0,0.002]
[1765823194730,4.17541839,2933.6,2933.0,0.002]
[1765823195022,7.5841994,2933.6,2933.0,0.002]
[1765823195714,4.17541839,2933.6,2933.0,0.002]
[1765823196115,7.5841994,2933.6,2933.0,0.002]
[1765823196429,4.17541839,2933.6,2933.0,0.002]
[1765823196631,4.38531839,2933.6,2933.0,0.002]
[1765823196801,0.51422184,2933.5,2933.0,0.002]
[1765823197642,1.06022184,2933.5,2933.1,0.6621]
[1765823197815,3.40878659,2933.6,2933.1,4.07145991]
[1765823198135,3.95478659,2933.6,2933.1,0.6621]
[1765823198363,0.546,2933.5,2933.1,0.1961]
[1765823199232,0.546,2933.5,2933.0,0.002]
[1765823199620,0.547,2933.5,2933.0,0.002]
[1765823199826,3.40901343,2933.4,2933.0,0.002]
[1765823200327,3.84442225,2933.4,2933.0,0.002]
[1765823200904,0.2099,2933.1,2933.0,0.002]
[1765823201100,0.7559,2933.1,2933.0,0.002]
[1765823201311,0.9658,2933.1,2933.0,0.002]
[1765823202021,4.95563739,2933.1,2933.0,0.002]
[1765823202228,5.85017333,2933.1,2933.0,0.002]
[1765823202427,1.11487929,2933.0,2932.8,0.002]
[1765823202743,1.11487929,2933.0,2931.9,0.002]
[1765823202744,0.1305,2932.1,2931.9,0.002]
[1765823202911,0.05,2932.6,2931.7,0.002]
[1765823202912,0.7535,2932.0,2931.7,0.002]
[1765823203106,0.2492,2931.9,2931.7,0.002]
[1765823203345,0.4591,2931.9,2931.7,0.002]
[1765823203664,0.612204,2931.8,2931.6,0.002]
[1765823203955,0.405504,2931.6,2931.0,0.00615458]
[1765823204111,0.206,2931.1,2931.0,0.00615458]
[1765823204312,0.752,2931.1,2931.0,0.00615458]
[1765823204624,0.9619,2931.1,2931.0,0.00615458]
[1765823205737,1.367404,2931.1,2931.0,0.00615458]
[1765823206048,1.367404,2931.1,2930.0,0.00342]
[1765823206049,3.41180484,2931.0,2930.0,0.00342]
[1765823206211,0.1328,2930.7,2930.0,0.00342]
[1765823206612,0.6788,2930.7,2930.0,0.00342]
[1765823206934,0.8887,2930.7,2930.0,0.00342]
[1765823207137,0.3427,2930.7,2930.0,0.00342]
[1765823207342,0.8887,2930.7,2930.0,0.00342]
[1765823208108,4.88132938,2930.7,2930.0,0.00342]
[1765823208314,4.88132938,2930.7,2928.5,0.18140948]
[1765823208315,0.05,2930.1,2928.5,0.18140948]